fUSD/lending_fUSD_20250320
["ID","MTS","AMOUNT","RATE_DAILY","PERIOD"]
[356469209,1742500237946,-150.0,0.00010999,2]
[356469210,1742500237957,-150.0,0.00011,2]
[356469211,1742500237968,-514.61,0.00011005,2]
[356469212,1742500237978,-13345.73,0.00011023,2]
[356469213,1742500237988,-250.0,0.00011023,2]
[356469214,1742500237998,-514.61,0.00011029,2]
[356469215,1742500238008,-514.61,0.00011052,2]
[356469216,1742500238018,-514.61,0.00011075,2]
[356469217,1742500238027,-514.61,0.00011098,2]
[356469218,1742500238035,-517.83964,0.000111,4]
[356469219,1742500238045,-200.0,0.00011102,2]
[356469220,1742500238054,-514.61,0.00011121,2]
[356469221,1742500238064,-190.08,0.00011136,2]
[356469222,1742500238073,-514.61,0.00011144,2]
[356469223,1742500238082,-514.61,0.00011167,2]
[356469224,1742500238092,-514.61,0.0001119,2]
[356469225,1742500238101,-64.93238701,0.00011213,2]
[356469226,1742500238113,-449.67761299,0.00011213,2]
[356469227,1742500238123,-514.61,0.00011236,2]
[356469228,1742500238132,-514.61,0.00011259,2]
[356469230,1742500238141,-538.35,0.0001126,2]
[356469232,1742500238151,-98.23087977,0.00011261,2]
[356469234,1742500238162,-903.36912023,0.00011261,2]
[356469236,1742500238172,-514.61,0.00011282,2]
[356469238,1742500238182,-514.61,0.00011305,2]
[356469240,1742500238191,-341.82087973,0.00011328,2]
[356469244,1742500238203,-172.78912027,0.00011328,2]
[356469245,1742500238368,-514.61,0.00011351,2]
[356469246,1742500238377,-514.61,0.00011375,2]
[356469247,1742500238386,-514.61,0.00011398,2]
[356469248,1742500238395,-243.52,0.00011573,2]
[356469249,1742500238404,-183.08,0.00011636,2]
[356469250,1742500238414,-500.0,0.00011687,2]
[356469251,1742500238423,-1114.42,0.00011724,2]
[356469252,1742500238433,-168.15,0.00011824,2]
[356469253,1742500238442,-788.09593071,0.000119,2]
[356469254,1742500238451,-2205.55777172,0.00011953,2]
[356469255,1742500238460,-150.0,0.00011972,2]
[356469256,1742500238469,-1000.0,0.00011973,2]
[356469257,1742500238478,-1000.0,0.00011973,2]
[356469258,1742500238486,-1000.0,0.00011973,2]
[356469259,1742500238496,-1000.0,0.00011973,2]
[356469260,1742500238505,-1000.0,0.00011973,2]
[356469261,1742500238514,-503.60612025,0.00011973,2]
[356469262,1742500238523,-500.0,0.00011973,2]
[356469263,1742500238531,-155.04515795,0.00011973,2]
[356469264,1742500238540,-500.0,0.00011973,2]
[356469265,1742500238549,-439.66255745,0.00011986,2]
[356469266,1742500238558,-1000.0,0.0001199,2]
[356469267,1742500238566,-1000.0,0.0001199,3]
[356469268,1742500238575,-1262.0,0.0001199,3]
[356469269,1742500238584,-1144.12119965,0.00011999,3]
[356469270,1742500238593,-2243.039,0.00011999,2]
[356469271,1742500238602,-218.97214853,0.00011999,2]
[356469272,1742500238611,-187.96722889,0.00011999,2]
[356469273,1742500238619,-338.37453046,0.00011999,2]
[356469274,1742500238628,-190.51822875,0.00011999,2]
[356469275,1742500238637,-106.06101768,0.00012,2]
[356469276,1742500238648,-19976.29607884,0.00012,2]
[356469277,1742500238662,-257.26787767,0.00012,2]
[356469280,1742500240233,-10373.6043891,0.00012,2]
[356469281,1742500240247,-6240.0,0.00012,2]
[356469282,1742500240258,-3584.87928876,0.00012,2]
[356469283,1742500240269,-295.739,0.00012,2]
[356469284,1742500240370,-4964.31847984,0.00012,2]
[356469296,1742500243583,-99031.86831618,0.00012,2]
[356469347,1742500246007,-218.6193617,0.00011948,2]
[356469348,1742500246017,-20813.37977732,0.00012,2]
[356469349,1742500246029,-1234876.42230296,0.00012,2]
[356469371,1742500319639,150.0,0.0001602,20]
[356469372,1742500322557,-588.33069744,0.00011948,2]
[356469373,1742500322586,-350.0,0.00011973,2]
[356469374,1742500322619,-150.0,0.00011973,2]
[356469375,1742500322649,-150.0,0.00011999,2]
[356469376,1742500322677,-3655.43602447,0.00012,2]
[356469377,1742500322722,-4893.76672191,0.00012,2]
[356469378,1742500322754,-4893.76672191,0.00012,2]
[356469379,1742500322792,-4893.76672191,0.00012,2]
[356469380,1742500322828,-4893.76672191,0.00012,2]
[356469381,1742500322877,-535.89558217,0.00012,2]
[356469382,1742500322925,-4893.76672191,0.00012,2]
[356469384,1742500648431,-218.61936169,0.000119,2]
[356469385,1742500648452,-163.93634725,0.00011928,2]
[356469386,1742500648473,-500.0,0.00011973,2]
[356469387,1742500648495,-150.0,0.00011999,2]
[356469388,1742500648516,-7006814.44429106,0.00012,2]
[356469389,1742500736452,-1984.763,0.0001176,2]
[356469390,1742500736478,-392.22046496,0.000119,2]
[356469391,1742500736503,-376.85362068,0.000119,2]
[356469392,1742500736529,-500.0,0.00011973,2]
[356469393,1742500736556,-153.28050397,0.00011999,2]
[356469394,1742500736581,-301.82328055,0.00011999,2]
[356469395,1742500736608,-366590.76415746,0.00012,2]
[356469396,1742500736717,-1193289.58994476,0.00012,2]
[356469397,1742500947648,172.61322,0.0001688,17]
[356469398,1742501042408,2047.14777895,0.00031362,60]
[356469399,1742501174532,-217.77360995,0.00011836,2]
[356469400,1742501174556,-172.61321,0.0001188,6]
[356469401,1742501174579,-150.0,0.0001189,2]
[356469402,1742501174603,-500.0,0.000119,2]
[356469403,1742501174627,-302.03340478,0.000119,2]
[356469404,1742501174650,-158.8258547,0.000119,2]
[356469405,1742501174673,-151.30495365,0.00011908,5]
[356469406,1742501174696,-150.0,0.00011919,2]
[356469407,1742501174718,-350.0,0.00011936,2]
[356469408,1742501174740,-500.0,0.00011973,2]
[356469409,1742501174761,-500.0,0.00011973,2]
[356469410,1742501174785,-300.0,0.00011999,2]
[356469411,1742501174807,-150.0,0.00011999,2]
[356469412,1742501174831,-996397.44896692,0.00012,2]
[356469413,1742501347156,-400.0,0.000117,4]
[356469414,1742501347180,-150.0,0.0001175,2]
[356469415,1742501347200,-800.0,0.000118,4]
[356469416,1742501347221,-1200.0,0.000119,4]
[356469417,1742501347243,-163.93634725,0.00011926,2]
[356469418,1742501347264,-500.0,0.00011973,2]
[356469419,1742501347284,-1099.66895685,0.00011999,2]
[356469420,1742501347304,-150.0,0.00011999,2]
[356469421,1742501347324,-430.1050559,0.00012,2]
[356469422,1742501432017,-8293.36643923,0.00012,2]
[356469423,1742501432028,-7135.35274793,0.00012,2]
[356469424,1742501432069,-24042.61756843,0.00012,2]
[356469732,1742501437974,-1094.75746436,0.00012,2]
[356469733,1742501437986,-31185.5504714,0.00012,2]
[356469734,1742501438028,-1363.229,0.00012,2]
[356469735,1742501438081,-6224.572055,0.00012,2]
[356469736,1742501438092,-9547.37304,0.00012,2]
[356469737,1742501438134,-947.85652924,0.00012,2]
[356469745,1742501440070,-11744.54181873,0.00012,2]
[356469757,1742501441296,-520.97500005,0.00012,2]
[356469758,1742501441310,-747.73115767,0.00012,2]
[356469759,1742501441344,-2549.05889236,0.00012,2]
[356469760,1742501441355,-242566.95577015,0.00012,2]
[356469761,1742501441367,-3429.73,0.00012,2]
[356469762,1742501441378,-1768.7432156,0.00012,2]
[356469763,1742501441390,-325.89044968,0.00012,2]
[356469764,1742501441401,-1688.50049369,0.00012,2]
[356469776,1742501443104,-41294.69998397,0.00012,2]
[356469777,1742501443115,-438.60309297,0.00012,2]
[356469778,1742501443232,-4304.3,0.00012,2]
[356469779,1742501443243,-181325.8120158,0.00012,2]
[356469780,1742501443254,-890.58,0.00012,2]
[356469857,1742501444159,-996.59224999,0.00012,2]
[356469858,1742501444171,-665823.31830814,0.00012,2]
[356469859,1742501446104,-74706.14903606,0.00012,2]
[356469860,1742501446270,-476.87996005,0.00012,2]
[356469861,1742501446283,-451.73885985,0.00012,2]
[356469862,1742501446294,-423236.47735848,0.00012,2]
[356470222,1742502308468,2290.28132125,0.00031349,90]
[356470223,1742502313914,1410.22738607,0.00031349,30]
[356470224,1742502321543,1402.50461413,0.00031349,120]
[356470225,1742502321598,2001.44606973,0.00031349,30]
[356470226,1742502328195,1837.62148232,0.00031349,30]
[356470227,1742502336777,2276.48344439,8e-05,2]
[356470228,1742502361014,1190.52574862,0.00031349,90]
[356470229,1742502471093,1153.5452087,0.00031349,30]
[356470230,1742502481357,300.0,9.999e-05,2]
[356470231,1742502505858,1231.69420413,0.00015146,15]
[356470232,1742502511125,1820.98252362,0.00031349,30]
[356470233,1742502511450,2980.34443626,0.00031349,120]
[356470234,1742502512309,202.26990301,9.999e-05,2]
[356470235,1742502512344,198.7412256,9.999e-05,2]
[356470236,1742502513430,-58.00784724,9.999e-05,2]
[356470237,1742502513663,2065.24732647,0.00031349,120]
[356470238,1742502514236,1460.17209789,0.00031349,30]
[356470239,1742502514869,1517.15521179,0.00031349,120]
[356470240,1742502516321,2191.20158093,0.00031349,30]
[356470241,1742502518572,500.0,0.00031349,30]
[356470245,1742502542754,-509.41215276,9.95e-05,2]
[356470249,1742502549649,-150.99,9.95e-05,2]
[356470253,1742502573502,-540.09721224,9.95e-05,2]
[356470254,1742502573533,-262.0,9.999e-05,2]
[356470255,1742502573564,-3736.97700902,0.0001,2]
[356470256,1742502573599,-4539.07422126,0.0001,2]
[356470257,1742502573657,-4539.07422126,0.0001,2]
[356470258,1742502573688,-4539.07422126,0.0001,2]
[356470259,1742502573737,-4539.07422126,0.0001,2]
[356470260,1742502573789,-4539.07422126,0.0001,2]
[356470261,1742502573843,-3157.28508568,0.0001,2]
[356470264,1742502597899,-401.5281,0.0001,2]
[356470271,1742502632181,-150.0,9.999e-05,2]
[356470273,1742502632191,-2947.19184984,0.0001,2]
[356470274,1742502632290,-2362.15462059,0.0001,2]
[356470275,1742502632301,-1036.92088886,0.0001,2]
[356470276,1742502632347,-17033.29348532,0.0001,2]
[356470277,1742502632357,-377435.89602948,0.0001,2]
[356470278,1742502632369,-1866.83619547,0.0001,2]
[356470279,1742502632380,-778.82933618,0.0001,2]
[356470280,1742502632407,-737.84980329,0.0001,2]
[356470281,1742502632416,-425.45658797,0.0001,2]
[356470282,1742502632427,-1184.17281378,0.0001,2]
[356470283,1742502632439,-247.72188828,0.0001,2]
[356470284,1742502632448,-398.26061673,0.0001,2]
[356470285,1742502632459,-2231.69236301,0.0001,2]
[356470286,1742502632468,-250.0,0.000108,2]
[356470287,1742502632477,-255.0,0.00010999,2]
[356470288,1742502632487,-350.0,0.00011,2]
[356470289,1742502632496,-150.0,0.00011,2]
[356470290,1742502632505,-350.0,0.00011,2]
[356470291,1742502632514,-152.06,0.00011044,2]
[356470292,1742502632524,-150.0,0.00011342,2]
[356470294,1742502632536,-173.46,0.00011378,2]
[356470296,1742502632546,-200.0,0.000114,4]
[356470297,1742502632556,-150.0,0.0001141,7]
[356470298,1742502632564,-500.0,0.000115,4]
[356470299,1742502632573,-2000.0,0.00011543,2]
[356470300,1742502632583,-800.0,0.000116,4]
[356470301,1742502632595,-961.3827003,0.0001164,2]
[356470302,1742502632604,-1100.0,0.000117,4]
[356470303,1742502632614,-1400.0,0.000118,4]
[356470304,1742502632623,-172.61322602,0.0001188,6]
[356470305,1742502632633,-391.593,0.000119,2]
[356470307,1742502632642,-200.0,0.000119,4]
[356470309,1742502632651,-358.1247,0.000119,2]
[356470311,1742502632661,-218.61936169,0.0001199,2]
[356470313,1742502632671,-316576.68507888,0.00012,2]
[356470315,1742502632681,-88140.23230242,0.00012,2]
[356470317,1742502632692,-370481.15047248,0.00012,2]
[356470319,1742502632703,-6815.36990892,0.00012,2]
[356470321,1742502632714,-712.02367317,0.00012,2]
[356470323,1742502632725,-1997.21734795,0.00012,2]
[356470347,1742502638160,-3446.9986574,0.00011099,2]
[356470348,1742502638169,-19357.29609628,0.00012,2]
[356470349,1742502638320,-695675.72721378,0.00012,2]
[356470350,1742502638332,-1985.5632,0.00012,2]
[356470354,1742502640298,-491.47098,0.00011099,2]
[356470355,1742502640309,-2635.91484755,0.00011099,2]
[356470356,1742502640501,-319.61282978,0.00011099,2]
[356470357,1742502640511,-442.44216262,0.0001164,2]
[356470358,1742502640691,-307.78073878,0.0001164,2]
[356470359,1742502640700,-548.12801788,0.00012,2]
[356470361,1742502640767,-1069.04862194,0.00012,2]
[356470367,1742502644038,-5263.18861647,0.00012,2]
[356470368,1742502644054,-2122.82465148,0.00012,2]
[356470369,1742502644069,-13342.1753065,0.00012,2]
[356470374,1742502646277,-1697.082924,0.00011099,2]
[356470375,1742502646336,-532.84310986,0.00011099,2]
[356470376,1742502646348,-290.61499565,0.00011099,2]
[356470377,1742502646359,-926.45762782,0.00011099,2]
[356470378,1742502646368,-767.13616418,0.00012,2]
[356470379,1742502646553,-625.90121812,0.00012,2]
[356470421,1742502660735,-526.65201662,0.00011099,2]
[356470422,1742503234553,1153.80713696,8.782e-05,2]
[356470423,1742503234583,1.36286304,8.782e-05,2]
[356470424,1742503411216,152.06,8.497e-05,2]
[356470425,1742503763176,-152.06,9.913e-05,2]
[356470426,1742503763197,-150.0,0.00010267,2]
[356470427,1742503763217,-1353.22,0.00010385,2]
[356470428,1742503763238,-200.0,0.00010411,2]
[356470429,1742503763257,-200.0,0.00010464,2]
[356470430,1742503763278,-150.0,0.00010467,7]
[356470431,1742503763301,-150.0,0.00010546,2]
[356470432,1742503763455,-250.0,0.00010621,2]
[356470433,1742503763477,-171.76,0.00010652,2]
[356470434,1742503763497,-164.96,0.00010748,2]
[356470435,1742503763517,-168.15,0.00010803,2]
[356470436,1742503763537,-1500.0,0.00010878,2]
[356470437,1742503763561,-117.36264616,0.00010878,2]
[356470445,1742503831424,-783.36735384,0.00010878,2]
[356470446,1742503831434,-150.0,0.00010878,2]
[356470447,1742503831443,-170.49148646,0.00010878,2]
[356470448,1742503831453,-198.2,0.00010895,2]
[356470449,1742503831463,-150.0,0.00010897,2]
[356470450,1742503831472,-805.88,0.00010929,2]
[356470451,1742503831482,-697.56384358,0.00010978,2]
[356470452,1742503831493,-1357.5031603,0.00010978,2]
[356470453,1742503831508,-1047.86837386,0.00010978,2]
[356470454,1742503831540,-615.08462226,0.00010978,2]
[356470455,1742503831549,-108.91537774,0.00011036,2]
[356470490,1742503837444,-77.33462226,0.00011036,2]
[356470491,1742503837454,-852.07777771,0.00011046,2]
[356470492,1742503837500,-303.09222229,0.00011046,2]
[356470493,1742503837510,-279.11769178,0.00011055,2]
[356470497,1742503839852,-1702.41230822,0.00011055,2]
[356470498,1742503839862,-300.0,0.00011194,2]
[356470499,1742503839871,-1160.59132667,0.00011195,2]
[356470500,1742503839883,-1588.45335795,0.00011195,2]
[356470519,1742503845677,-5952.46531538,0.00011195,2]
[356470520,1742503845686,-473.62215336,0.00011228,2]
[356470521,1742503845695,-1587.81,0.00011237,2]
[356470522,1742503845704,-10192.33777538,0.00011238,2]
[356470560,1742504152486,-172.23395538,0.00011038,2]
[356470561,1742504152520,-1463.35,0.00011138,2]
[356470562,1742504152539,-172.23395538,0.00011138,2]
[356470563,1742504152549,-1463.35,0.00011138,2]
[356470564,1742504152560,-1728.83208924,0.00011138,2]
[356470565,1742504267109,1039.65,9.066e-05,2]
[356470566,1742504617696,328.0,0.00031342,30]
[356470567,1742504884773,152.06,8.599e-05,2]
[356470576,1742505031510,-164.55,0.00010859,2]
[356470577,1742505031520,-350.0,0.00010869,2]
[356470578,1742505031529,-25.45,0.00010875,2]
[356470579,1742505031541,-224.55,0.00010875,2]
[356470580,1742505031550,-150.0,0.00010879,7]
[356470581,1742505031559,-160.92,0.00010966,2]
[356470582,1742505031571,-781.48,0.00010966,2]
[356470583,1742505031580,-250.0,0.00010966,2]
[356470584,1742505031590,-1859.01,0.00011032,2]
[356470585,1742505031599,-602.80466463,0.00011064,2]
[356470586,1742505031610,-198.47533537,0.00011064,2]
[356470587,1742505031619,-159.44,0.00011078,2]
[356470588,1742505031629,-2280.54792471,0.00011138,2]
[356470589,1742505031651,-1981.65944888,0.00011138,2]
[356470590,1742505031662,-1397.36990996,0.00011138,2]
[356470591,1742505031672,-1885.6802487,0.00011138,2]
[356470592,1742505031685,-2257.03968916,0.00011138,2]
[356470593,1742505031696,-445.49189213,0.00011138,2]
[356470594,1742505031848,-7702.67026752,0.00011138,2]
[356470595,1742505031860,-2585.12457432,0.00011138,2]
[356470596,1742505031870,-595.21791802,0.00011193,2]
[356470597,1742505031881,-436.99285188,0.00011193,2]
[356470598,1742505031892,-3.4492301,0.00011193,2]
[356470599,1742505031902,-1000.0,0.00011196,2]
[356470600,1742505031911,-164.55,0.00011293,2]
[356470601,1742505031920,-880.9,0.00011322,2]
[356470603,1742505031930,-1039.65,0.00011329,2]
[356470605,1742505031939,-491.0,0.00011616,2]
[356470607,1742505031949,-562.667176,0.0001164,2]
[356470609,1742505031957,-150.0,0.00011799,2]
[356470611,1742505031966,-268.94421208,0.000118,2]
[356470613,1742505031977,-3940.02773101,0.000118,2]
[356470615,1742505031988,-3017.46555691,0.000118,2]
[356470617,1742505031998,-471.4584,0.000118,2]
[356470619,1742505032007,-856.1654,0.000118,2]
[356470622,1742505032016,-1492.7718,0.000118,2]
[356470625,1742505032025,-495.23596519,0.00011863,2]
[356470627,1742505032038,-4.76403481,0.00011863,2]
[356470629,1742505032047,-293.93096519,0.0001187,2]
[356470633,1742505032074,-5292.42640267,0.0001187,2]
[356470635,1742505032083,-500.0,0.00011873,2]
[356470637,1742505032093,-32764.3818,0.0001189,2]
[356470639,1742505032101,-35574.7656561,0.000119,2]
[356470641,1742505032113,-4873.03523845,0.000119,2]
[356470658,1742505037464,-3156.42650307,0.000119,2]
[356470659,1742505037476,-11323.77274692,0.000119,2]
[356470660,1742505037487,-337.3648906,0.000119,2]
[356470661,1742505037525,-20163.2223425,0.000119,2]
[356470662,1742505037536,-1140.74733743,0.000119,2]
[356470663,1742505037547,-2854.40002,0.000119,2]
[356470664,1742505037580,-14456.69596493,0.000119,2]
[356470665,1742505037590,-829.199,0.000119,2]
[356470666,1742505037599,-1769.9121,0.000119,2]
[356470667,1742505037609,-174.05445656,0.00011934,2]
[356470668,1742505037618,-218.61936169,0.00011934,2]
[356470669,1742505037628,-261.48030998,0.00011934,2]
[356470670,1742505037641,-384.56862539,0.00011942,2]
[356470671,1742505037650,-350.0,0.00011945,2]
[356470672,1742505037660,-350.0,0.00011945,2]
[356470673,1742505037669,-150.0,0.00011965,2]
[356470674,1742505037680,-1000.0,0.0001199,2]
[356470675,1742505037689,-1000.0,0.0001199,2]
[356470676,1742505037699,-300.59263738,0.00011999,2]
[356470677,1742505037709,-163.50572879,0.00011999,2]
[356470678,1742505037718,-179.72435099,0.00011999,2]
[356470679,1742505037728,-668.0,0.00012,2]
[356470680,1742505037737,-177398.2753548,0.00012,2]
[356470681,1742505037749,-9061.49703077,0.00012,2]
[356470683,1742505037764,-603.465158,0.00012,2]
[356470685,1742505037774,-848.6840014,0.00012,2]
[356470817,1742505039650,-1421.5904,0.0001189,2]
[356470818,1742505039659,-3173.20069732,0.00012,2]
[356470819,1742505039671,-1011.06427204,0.00012,2]
[356470820,1742505039710,-1090.1673883,0.00012,2]
[356470821,1742505039763,-963.19752,0.00012,2]
[356470822,1742505039821,-1375.4138,0.00012,2]
[356470823,1742505039879,-96155.05713446,0.00012,2]
[356470824,1742505039890,-116874.16449039,0.00012,2]
[356470825,1742505039937,-319.83586182,0.00012,2]
[356470997,1742505042693,-96.48859221,0.00012,2]
[356470998,1742505042856,-12888.52295393,0.00012,2]
[356470999,1742505042868,-72462.32164005,0.00012,2]
[356471000,1742505042883,-111207.3299829,0.00012,2]
[356471002,1742505042894,-1097.45320541,0.00012,2]
[356471003,1742505042916,-1943.25529658,0.00012,2]
[356471004,1742505042928,-109668.87610268,0.00012,2]
[356471005,1742505042961,-2109.66687147,0.00012,2]
[356471006,1742505042972,-11869.66841083,0.00012,2]
[356471007,1742505043357,-361.45361106,0.00012,2]
[356471008,1742505043369,-2803.85817402,0.00012,2]
[356471009,1742505043380,-13880.54347025,0.00012,2]
[356471076,1742505045914,-359.01388953,0.00012,2]
[356471080,1742505045972,-242.98611047,0.00012,2]
[356471082,1742505045981,-370.4679753,0.00012,2]
[356471089,1742505046055,-5136.42863793,0.00012,2]
[356471090,1742505046260,-71216.03254216,0.00012,2]
[356471091,1742505046272,-21878.74024412,0.00012,2]
[356471092,1742505046284,-9489.43803565,0.00012,2]
[356471093,1742505046296,-98987.83789561,0.00012,2]
[356471098,1742505279652,1015.13,9.679e-05,2]
[356471099,1742505344596,1000.0,0.00031342,30]
[356471100,1742505345621,1000.0,0.00031342,30]
[356471101,1742505346275,1000.0,0.00031342,30]
[356471102,1742505346853,174.25198232,0.00031342,30]
[356471103,1742505625194,988.31309,0.0001688,17]
[356471104,1742505625267,988.31309,0.0001938,22]
[356471105,1742505740443,159.0,0.00031524,30]
[356471106,1742505761765,-315.0,0.0001,2]
[356471107,1742505779146,-150.0,0.00011,2]
[356471108,1742505779166,-173.48,0.00011055,2]
[356471109,1742505779186,-150.0,0.00011087,7]
[356471110,1742505779206,-250.0,0.00011273,2]
[356471111,1742505779226,-350.0,0.00011308,2]
[356471112,1742505779246,-1253.89,0.00011343,2]
[356471113,1742505779266,-172.23395537,0.00011423,2]
[356471114,1742505779286,-8874.41,0.00011523,2]
[356471115,1742505779306,-507.4339293,0.0001164,2]
[356471116,1742505779327,-348.7,0.00011695,2]
[356471117,1742505779346,-184.69,0.0001176,2]
[356471118,1742505779366,-150.0,0.000118,2]
[356471119,1742505779386,-172.23395537,0.000118,2]
[356471120,1742505779405,-300.52502365,0.00011873,2]
[356471121,1742505779426,-988.31309,0.0001188,6]
[356471122,1742505779446,-150.0,0.00011899,2]
[356471123,1742505779466,-4197.9889,0.000119,2]
[356471124,1742505779487,-982.0386,0.000119,2]
[356471125,1742505779508,-3213.7754,0.000119,2]
[356471126,1742505779529,-1705.0,0.000119,2]
[356471127,1742505779550,-14456.3366,0.000119,2]
[356471128,1742505779571,-14026.03474135,0.000119,2]
[356471129,1742505779592,-871.12855316,0.000119,2]
[356471130,1742505779612,-871.12855317,0.000119,2]
[356471131,1742505779633,-2082.07617198,0.00011902,2]
[356471132,1742505779652,-401.63554138,0.00011902,2]
[356471133,1742505779671,-8162.1781929,0.00011902,2]
[356471134,1742505779691,-218.61936169,0.00011902,2]
[356471135,1742505779711,-1015.13,0.00011943,2]
[356471136,1742505779731,-187.247,0.00011943,2]
[356471137,1742505779752,-1767.527,0.00011943,2]
[356471138,1742505779771,-196.51784312,0.00011972,2]
[356471139,1742505779792,-26191.0,0.00011973,2]
[356471140,1742505779812,-7835.0,0.00011973,2]
[356471141,1742505779832,-21399.7797254,0.00011994,2]
[356471142,1742505779855,-2238.2391081,0.00011994,2]
[356471143,1742505779876,-1020.01294583,0.00011999,3]
[356471144,1742505779897,-1020.01294583,0.00011999,3]
[356471145,1742505779918,-1020.01294583,0.00011999,3]
[356471146,1742505779941,-1020.01294582,0.00011999,3]
[356471147,1742505779961,-1020.01294584,0.00011999,3]
[356471148,1742505779982,-1020.01294584,0.00011999,3]
[356471149,1742505780004,-1020.01294584,0.00011999,3]
[356471150,1742505780026,-1020.01294584,0.00011999,3]
[356471151,1742505780049,-1020.01294584,0.00011999,3]
[356471152,1742505780071,-962.0,0.00012,2]
[356471153,1742505780095,-588208.59224155,0.00012,2]
[356471154,1742505835964,-900.0,0.000116,4]
[356471155,1742505835986,-426.9053357,0.0001164,2]
[356471156,1742505836007,-1900.0,0.000117,4]
[356471157,1742505836029,-2800.0,0.000118,4]
[356471158,1742505836050,-3800.0,0.000119,4]
[356471159,1742505836071,-13751.1957,0.000119,2]
[356471160,1742505836092,-300.0,0.00011972,2]
[356471161,1742505836113,-748.9433586,0.00011994,2]
[356471162,1742505836133,-179.33325404,0.00011999,2]
[356471163,1742505836152,-857.0,0.00012,2]
[356471164,1742505836174,-284697.62235166,0.00012,2]
[356471165,1742505877669,-3898.9328,0.00011873,2]
[356471166,1742505877691,-500.0,0.00011973,2]
[356471167,1742505877712,-500.0,0.00011973,2]
[356471168,1742505877734,-300.0,0.00011999,2]
[356471169,1742505877754,-150.0,0.00011999,2]
[356471170,1742505877775,-776.0,0.00012,2]
[356471171,1742505877797,-102961.0672,0.00012,2]
[356471172,1742505948064,966.6,0.00031524,30]
[356471173,1742505980270,156.71,9.055e-05,2]
[356471174,1742506030519,-320.1790018,0.0001164,2]
[356471175,1742506030542,-300.0,0.00011883,2]
[356471176,1742506030564,-212.72592818,0.000119,2]
[356471177,1742506030585,-329.63025036,0.000119,2]
[356471178,1742506030607,-212.72592817,0.00011906,2]
[356471179,1742506030628,-329.63025032,0.00011908,2]
[356471180,1742506030650,-212.72592817,0.00011913,2]
[356471181,1742506030671,-329.63025032,0.00011915,2]
[356471182,1742506030691,-212.72592817,0.00011919,2]
[356471183,1742506030712,-329.63025032,0.00011923,2]
[356471184,1742506030733,-212.72592817,0.00011926,2]
[356471185,1742506030753,-329.63025032,0.0001193,2]
[356471186,1742506030774,-212.72592817,0.00011932,2]
[356471187,1742506031017,-300.0,0.00011936,2]
[356471188,1742506031040,-16324.35638578,0.00011937,2]
[356471189,1742506031062,-329.63025032,0.00011938,2]
[356471190,1742506031084,-212.72592817,0.00011939,2]
[356471191,1742506031105,-1208.04223449,0.00011945,2]
[356471192,1742506031126,-212.72592817,0.00011945,2]
[356471193,1742506031146,-803.27108274,0.00011945,2]
[356471194,1742506031166,-329.63025032,0.00011945,2]
[356471195,1742506031186,-180.44802466,0.00011973,2]
[356471196,1742506031207,-500.0,0.00011973,2]
[356471197,1742506031227,-150.0,0.00011999,2]
[356471198,1742506031248,-701.0,0.00012,2]
[356471199,1742506031270,-341880.48409288,0.00012,2]
[356471200,1742506082532,-287.96771623,9.999e-05,2]
[356471203,1742506117948,-12.03228377,9.999e-05,2]
[356471204,1742506117973,-172.1004613,9.999e-05,2]
[356471205,1742506117996,-63.82164853,9.999e-05,2]
[356471207,1742506121255,-187.51867499,9.999e-05,2]
[356471208,1742506121284,-210.41484617,9.999e-05,2]
[356471209,1742506121318,-655191.66469231,0.0001,2]
[356471210,1742506121352,-420.0,0.00010999,2]
[356471211,1742506121384,-350.0,0.00011,2]
[356471212,1742506121417,-400.0,0.000112,4]